fUSD/lending_fUSD_20240214
["ID","MTS","AMOUNT","RATE_DAILY","PERIOD"]
[314017635,1707923574738,-631.42,0.00041917,7]
[314017636,1707923574747,-1281.5,0.00041917,7]
[314017637,1707923574757,-1512.4,0.00041917,7]
[314017638,1707923574767,-669.64,0.00041917,7]
[314017639,1707923574776,-2645.87,0.00041917,7]
[314017640,1707923574786,-649.97,0.00041917,7]
[314017641,1707923574795,-9592.87,0.00041917,7]
[314017642,1707923574804,-6589.39,0.00041917,7]
[314017643,1707923574814,-500.0,0.00041917,7]
[314017644,1707923574823,-537.36,0.00041917,7]
[314017645,1707923574834,-1074.08,0.00041917,7]
[314017646,1707923574844,-712.86,0.00041917,7]
[314017647,1707923574853,-10349.22,0.00041917,7]
[314017648,1707923574863,-2138.7,0.00041917,7]
[314017649,1707923574873,-2522.18,0.00041917,7]
[314017650,1707923574882,-1253.86,0.00041917,7]
[314017651,1707923574892,-500.0,0.00041917,7]
[314017652,1707923574902,-775.14,0.00041917,7]
[314017653,1707923574912,-5438.42,0.00041917,7]
[314017654,1707923574921,-617.22,0.00041917,7]
[314017655,1707923574931,-5792.28,0.00041917,7]
[314017656,1707923574940,-1042.95,0.00041917,7]
[314017657,1707923574950,-571.94362954,0.00041917,7]
[314017658,1707923574960,-1305.25,0.00041917,7]
[314017659,1707923574969,-1375.63,0.00041917,7]
[314017660,1707923574980,-500.0,0.00041917,7]
[314017661,1707923574990,-1101.1,0.00041917,7]
[314017662,1707923575001,-1710.63,0.00041917,7]
[314017663,1707923575011,-3610.33,0.00041917,7]
[314017664,1707923575021,-1942.7,0.00041917,7]
[314017665,1707923575031,-656.71,0.00041917,7]
[314017666,1707923575042,-500.0,0.00041917,7]
[314017667,1707923575052,-508.16,0.00041917,7]
[314017668,1707923575062,-500.0,0.00041917,7]
[314017669,1707923575072,-2795.61,0.00041917,7]
[314017670,1707923575082,-13119.1,0.00041917,7]
[314017671,1707923575093,-4841.93,0.00041917,7]
[314017672,1707923575103,-789.06,0.00041917,7]
[314017673,1707923575113,-1122.77,0.00041917,7]
[314017674,1707923575129,-1486.36,0.00041917,7]
[314017675,1707923575150,-3238.15,0.00041917,7]
[314017676,1707923575162,-5897.47,0.00041917,7]
[314017677,1707923575172,-805.46,0.00041917,7]
[314017678,1707923575182,-664.49,0.00041917,7]
[314017679,1707923575191,-1313.77,0.00041917,7]
[314017680,1707923575204,-574.19,0.00041917,7]
[314017681,1707923575214,-11522.74,0.00041917,7]
[314017682,1707923575223,-1290.94,0.00041917,7]
[314017683,1707923575233,-520.12,0.00041917,7]
[314017684,1707923575242,-1511.05,0.00041917,7]
[314017685,1707923575252,-879.95,0.00041917,7]
[314017686,1707923575261,-6267.83,0.00041917,7]
[314017687,1707923575271,-2830.38,0.00041917,7]
[314017688,1707923575280,-763.78,0.00041917,7]
[314017689,1707923575290,-1371.91,0.00041917,7]
[314017690,1707923575300,-626.07,0.00041917,7]
[314017691,1707923575309,-4425.6,0.00041917,7]
[314017692,1707923575318,-986.33,0.00041917,7]
[314017693,1707923575328,-45639.2,0.00041917,7]
[314017694,1707923575338,-5389.09,0.00041917,7]
[314017695,1707923575348,-1240.03,0.00041917,7]
[314017696,1707923575357,-558.68,0.00041917,7]
[314017697,1707923575367,-4636.49,0.00041917,7]
[314017698,1707923575377,-5227.83,0.00041917,7]
[314017699,1707923575387,-525.56,0.00041917,7]
[314017700,1707923575397,-2461.93,0.00041917,7]
[314017701,1707923575407,-682.43,0.00041917,7]
[314017702,1707923575416,-1031.1,0.00041917,7]
[314017703,1707923575426,-1060.11,0.00041917,7]
[314017704,1707923575435,-3757.3,0.00041917,7]
[314017705,1707923575445,-741.06,0.00041917,7]
[314017706,1707923575460,-777.41,0.00041917,7]
[314017707,1707923575469,-838.79,0.00041917,7]
[314017708,1707923575479,-866.09,0.00041917,7]
[314017709,1707923575488,-1479.6,0.00041917,7]
[314017710,1707923575498,-3315.92,0.00041917,7]
[314017711,1707923575507,-8419.92,0.00041917,7]
[314017712,1707923575517,-1669.6,0.00041917,7]
[314017713,1707923575526,-1425.19,0.00041917,7]
[314017714,1707923575536,-941.92,0.00041917,7]
[314017715,1707923575546,-1068.3,0.00041917,7]
[314017716,1707923575555,-978.39,0.00041917,7]
[314017717,1707923575565,-1743.01,0.00041917,7]
[314017718,1707923575574,-526.80550657,0.00041917,7]
[314017719,1707923575584,-527.53,0.00041917,7]
[314017720,1707923575593,-2618.16,0.00041917,7]
[314017721,1707923575603,-5014.41,0.00041917,7]
[314017722,1707923575613,-16404.96,0.00041917,7]
[314017723,1707923575623,-1253.74,0.00041917,7]
[314017724,1707923575632,-1428.29,0.00041917,7]
[314017725,1707923575641,-12919.21,0.00041917,7]
[314017726,1707923575651,-500.0,0.00041917,7]
[314017727,1707923575662,-725.51,0.00041917,7]
[314017728,1707923575671,-564.17,0.00041917,7]
[314017729,1707923575681,-670.32,0.00041917,7]
[314017730,1707923575691,-608.21,0.00041917,7]
[314017731,1707923575702,-3982.22,0.00041917,7]
[314017732,1707923575711,-15886.12,0.00041917,7]
[314017733,1707923575721,-2293.57,0.00041917,7]
[314017734,1707923575731,-1912.2,0.00041917,7]
[314017735,1707923575741,-1078.52,0.00041917,7]
[314017736,1707923575750,-1675.86,0.00041917,7]
[314017737,1707923575759,-4682.24,0.00041917,7]
[314017738,1707923575768,-998.25,0.00041917,7]
[314017739,1707923575778,-1548.99,0.00041917,7]
[314017740,1707923575787,-1678.3,0.00041917,7]
[314017741,1707923575797,-2172.47,0.00041917,7]
[314017742,1707923575806,-4636.94,0.00041917,7]
[314017743,1707923575815,-905.58,0.00041917,7]
[314017744,1707923575824,-3347.59,0.00041917,7]
[314017745,1707923575834,-24853.72,0.00041917,7]
[314017746,1707923575843,-2682.03,0.00041917,7]
[314017747,1707923575853,-500.0,0.00041917,7]
[314017748,1707923575862,-741.23,0.00041917,7]
[314017749,1707923575873,-4661.42,0.00041917,7]
[314017750,1707923575881,-504.17,0.00041917,7]
[314017751,1707923575891,-644.02,0.00041917,7]
[314017752,1707923575901,-1447.91,0.00041917,7]
[314017753,1707923575910,-870.17,0.00041917,7]
[314017754,1707923575921,-575.73,0.00041917,2]
[314017755,1707923575930,-513.51,0.00041917,7]
[314017756,1707923575940,-13772.64,0.00041917,7]
[314017757,1707923575952,-734.67,0.00041917,7]
[314017758,1707923575961,-861.53,0.00041917,7]
[314017759,1707923575971,-4963.65,0.00041917,7]
[314017760,1707923575981,-4015.51,0.00041917,7]
[314017761,1707923575992,-1647.66,0.00041917,7]
[314017762,1707923576000,-391.12667167,0.00041917,7]
[314017763,1707923576010,-834.17,0.00041917,7]
[314017764,1707923576019,-1651.62,0.00041917,7]
[314017765,1707923576028,-1367.71,0.00041917,7]
[314017766,1707923576037,-705.01,0.00041917,7]
[314017767,1707923576047,-738.43,0.00041917,7]
[314017768,1707923576056,-500.0,0.00041917,7]
[314017769,1707923576067,-1232.76,0.00041917,7]
[314017770,1707923576076,-1605.94,0.00041917,7]
[314017771,1707923576086,-2624.93,0.00041917,7]
[314017772,1707923576095,-1397.98,0.00041917,7]
[314017773,1707923576104,-6303.05,0.00041917,7]
[314017774,1707923576114,-3882.2,0.00041917,7]
[314017775,1707923576123,-1424.26,0.00041917,7]
[314017776,1707923576132,-6796.38,0.00041917,7]
[314017777,1707923576141,-9115.46,0.00041917,7]
[314017778,1707923576151,-1430.04,0.00041917,7]
[314017779,1707923576160,-876.71,0.00041917,7]
[314017780,1707923576171,-6722.84,0.00041917,7]
[314017781,1707923576180,-1159.69,0.00041917,7]
[314017782,1707923576190,-5625.73,0.00041917,7]
[314017783,1707923576200,-1566.04,0.00041917,7]
[314017784,1707923576211,-742.15,0.00041917,7]
[314017785,1707923576221,-1074.84,0.00041917,7]
[314017786,1707923576230,-21955.42,0.00041917,7]
[314017787,1707923576240,-10536.73,0.00041917,7]
[314017788,1707923576249,-1224.55,0.00041917,7]
[314017789,1707923576259,-1141.82,0.00041917,7]
[314017790,1707923576268,-4103.23,0.00041917,7]
[314017791,1707923576278,-3349.17,0.00041917,7]
[314017792,1707923576287,-15646.43,0.00041917,7]
[314017793,1707923576296,-500.0,0.00041917,7]
[314017794,1707923576307,-580.0,0.00041917,7]
[314017795,1707923576317,-888.9,0.00041917,7]
[314017796,1707923576326,-849.7,0.00041917,7]
[314017797,1707923576336,-1131.16,0.00041917,7]
[314017798,1707923576346,-970.39,0.00041917,7]
[314017799,1707923576355,-2458.64,0.00041917,7]
[314017800,1707923576365,-1032.81,0.00041917,7]
[314017801,1707923576374,-940.22,0.00041917,7]
[314017802,1707923576384,-845.63,0.00041917,7]
[314017803,1707923576393,-861.05,0.00041917,7]
[314017804,1707923576402,-2020.71,0.00041917,7]
[314017805,1707923576411,-655.93,0.00041917,7]
[314017806,1707923576421,-4353.77,0.00041917,7]
[314017807,1707923576430,-2136.24,0.00041917,7]
[314017808,1707923576439,-1868.07,0.00041917,7]
[314017809,1707923576448,-3468.32,0.00041917,7]
[314017810,1707923576461,-1175.69,0.00041917,7]
[314017811,1707923576470,-4307.44,0.00041917,7]
[314017812,1707923576479,-2131.96,0.00041917,7]
[314017813,1707923576488,-4133.28,0.00041917,7]
[314017814,1707923576497,-3754.14,0.00041917,7]
[314017815,1707923576506,-535.82168895,0.00041917,7]
[314017816,1707923576515,-1200.28,0.00041917,7]
[314017817,1707923576525,-551.94,0.00041917,7]
[314017818,1707923576534,-2643.73,0.00041917,7]
[314017819,1707923576543,-1293.93,0.00041917,7]
[314017820,1707923576552,-1428.62,0.00041917,7]
[314017821,1707923576561,-4255.94,0.00041917,7]
[314017822,1707923576571,-1073.43,0.00041917,7]
[314017823,1707923576580,-1154.7,0.00041917,7]
[314017824,1707923576589,-1681.08,0.00041917,7]
[314017825,1707923576598,-749.27,0.00041917,7]
[314017826,1707923576608,-696.07,0.00041917,7]
[314017827,1707923576617,-1992.67,0.00041917,7]
[314017828,1707923576626,-1960.66,0.00041917,7]
[314017829,1707923576635,-4598.11,0.00041917,7]
[314017830,1707923576644,-2148.61,0.00041917,7]
[314017831,1707923576653,-776.5,0.00041917,7]
[314017832,1707923576663,-876.47,0.00041917,7]
[314017833,1707923576672,-759.83,0.00041917,7]
[314017834,1707923576681,-907.63,0.00041917,7]
[314017835,1707923576690,-1863.83,0.00041917,7]
[314017836,1707923576713,-22229.37,0.00041917,7]
[314017837,1707923576723,-2233.48,0.00041917,7]
[314017838,1707923576733,-1407.78,0.00041917,7]
[314017839,1707923576742,-189.41634209,0.00041917,7]
[314017840,1707923576751,-2807.7,0.00041917,7]
[314017841,1707923576763,-749.48,0.00041917,7]
[314017842,1707923576773,-770.43,0.00041917,7]
[314017843,1707923576782,-500.0,0.00041917,7]
[314017844,1707923576791,-4409.87,0.00041917,7]
[314017845,1707923576802,-1582.96,0.00041917,7]
[314017846,1707923576811,-940.66,0.00041917,7]
[314017847,1707923576821,-778.24,0.00041917,7]
[314017848,1707923576830,-819.98,0.00041917,7]
[314017849,1707923576840,-354.81402348,0.00041919,30]
[314017850,1707923576850,-239.29468169,0.00041933,30]
[314017851,1707923576859,-657.90689477,0.00041933,30]
[314017852,1707923576869,-151.021419,0.00041948,19]
[314017853,1707923576878,-232.63,0.0004197,61]
[314017854,1707923576887,-150.0,0.0004198,3]
[314017855,1707923576897,-150.0,0.0004198,3]
[314017856,1707923576908,-150.5,0.0004198,61]
[314017857,1707923576918,-13190.14272727,0.0004198,2]
[314017858,1707923576927,-1532.39478887,0.00041986,7]
[314017859,1707923576937,-631.18465979,0.00041986,7]
[314017860,1707923576946,-996.19465956,0.00041986,7]
[314017861,1707923576959,-1222.41591722,0.00041986,7]
[314017862,1707923576968,-1120.06673539,0.00041986,7]
[314017863,1707923576978,-200.0,0.00041987,6]
[314017864,1707923576987,-200.0,0.00041987,7]
[314017865,1707923576999,-205.64,0.0004199,61]
[314017866,1707923577008,-150.5,0.0004199,61]
[314017867,1707923577017,-150.55,0.0004199,61]
[314017868,1707923577026,-150.57,0.0004199,61]
[314017869,1707923577037,-354.81402348,0.00041994,30]
[314017870,1707923577046,-100000.0,0.00042,32]
[314017871,1707923577055,-900.0,0.00042,4]
[314017872,1707923577065,-1556.76665606,0.00042,20]
[314017873,1707923577075,-200.0,0.00042,16]
[314017874,1707923577218,-2039.79205322,0.00042,12]
[314017875,1707923577230,-315.78831258,0.00042,2]
[314017876,1707923577239,-8715.80477427,0.00042,2]
[314017877,1707923577248,-500.0,0.00042,7]
[314017878,1707923577258,-358.73258447,0.00042,2]
[314017879,1707923577267,-40221.25693233,0.00042,7]
[314017880,1707923577278,-502.0,0.00042,2]
[314017881,1707923577288,-861.03578597,0.00042,120]
[314017882,1707923577297,-552.55624497,0.00042,120]
[314017883,1707923577307,-154.56004376,0.00042,7]
[314017884,1707923577317,-50000.0,0.00042,20]
[314017885,1707923577326,-67200.0,0.00042,20]
[314017886,1707923577335,-300.0,0.00042,39]
[314017887,1707923577344,-259.0,0.00042,30]
[314017888,1707923577353,-317116.8104,0.00042,59]
[314017889,1707923577362,-36666.0,0.00042,30]
[314017890,1707923577372,-33333.0,0.00042,30]
[314017891,1707923577382,-456.68488827,0.00042,2]
[314017892,1707923577391,-2000.0,0.00042,120]
[314017893,1707923577400,-2000.0,0.00042,120]
[314017894,1707923577410,-175.192,0.00042,59]
[314017895,1707923577419,-265.0,0.00042,30]
[314017896,1707923577428,-733.93215085,0.00042,4]
[314017897,1707923577438,-391893.79946462,0.00042,30]
[314017898,1707923577447,-1016.0,0.00042,30]
[314017899,1707923577462,-4247.0,0.00042,2]
[314017900,1707923577472,-500.0,0.00042,14]
[314017901,1707923577482,-185.86970748,0.00042,120]
[314017902,1707923577492,-2110.0,0.00042,15]
[314017903,1707923577502,-2100.0,0.00042,7]
[314017904,1707923577511,-6092.0,0.00042,40]
[314017905,1707923577522,-1500.0,0.00042,120]
[314017906,1707923577531,-1030.81525517,0.00042,120]
[314017907,1707923577541,-16610.0,0.00042,30]
[314017908,1707923577551,-628.71879909,0.00042,50]
[314017909,1707923577560,-2000.0,0.00042,2]
[314017910,1707923577570,-200.0,0.00042,19]
[314017911,1707923577580,-643958.9512,0.00042,59]
[314017912,1707923577590,-3000.0,0.00042,120]
[314017913,1707923577599,-623.14131331,0.00042,15]
[314017914,1707923577609,-5096.17969571,0.00042,30]
[314017915,1707923577618,-44651.77724913,0.00042,30]
[314017916,1707923577627,-277.27199044,0.00042,30]
[314017917,1707923577637,-2495.44791396,0.00042,30]
[314017918,1707923577646,-15064.39253856,0.00042,7]
[314017919,1707923577656,-1499.53668054,0.00042,15]
[314017920,1707923577665,-1000.0,0.00042,15]
[314017921,1707923577675,-984.27243118,0.00042,15]
[314017922,1707923577685,-1663.81470689,0.00042,15]
[314017923,1707923577694,-184.86830077,0.00042,15]
[314017924,1707923577705,-11724.40182531,0.00042,30]
[314017925,1707923577714,-251.70227023,0.00042,15]
[314017926,1707923577723,-17834.40615816,0.00042,30]
[314017927,1707923577733,-531.91270599,0.00042,30]
[314017928,1707923577742,-549.75887412,0.00042,15]
[314017929,1707923577752,-262.72891855,0.00042,15]
[314017930,1707923577761,-2778.35831363,0.00042,15]
[314017931,1707923577771,-5413.51897982,0.00042,30]
[314017932,1707923577781,-601.50210887,0.00042,30]
[314017933,1707923577790,-123176.60048524,0.00042,30]
[314017934,1707923577800,-750.24910032,0.00042,15]
[314017935,1707923577809,-487.51245501,0.00042,15]
[314017936,1707923577818,-268.13185026,0.00042,15]
[314017937,1707923577828,-504.311195,0.00042,14]
[314017938,1707923577837,-229.82570711,0.00042,15]
[314017939,1707923577846,-708.75,0.00042,15]
[314017940,1707923577855,-85555.36866695,0.00042,30]
[314017941,1707923577864,-172.99372994,0.00042,15]
[314017942,1707923577873,-198.45927495,0.00042,15]
[314017943,1707923577883,-1786.13347456,0.00042,15]
[314017944,1707923577893,-227.12747286,0.00042,15]
[314017945,1707923577902,-504.72771746,0.00042,15]
[314017946,1707923577912,-17288.78067129,0.00042,30]
[314017947,1707923577921,-960.48781507,0.00042,30]
[314017948,1707923577930,-938.00866841,0.00042,15]
[314017949,1707923577940,-192.5,0.00042,15]
[314017950,1707923577950,-219.20625,0.00042,15]
[314017951,1707923577961,-2708.73380541,0.00042,30]
[314017952,1707923577971,-354.55337356,0.00042,15]
[314017953,1707923577981,-2758.43,0.00042,7]
[314017954,1707923577991,-4124.4,0.00042,7]
[314017955,1707923578003,-4339.99175017,0.00042,30]
[314017956,1707923578012,-10015.00287259,0.00042,2]
[314017957,1707923578022,-300.0,0.00042,2]
[314017958,1707923578037,-200.0,0.00042,2]
[314017959,1707923578046,-200.0,0.00042,49]
[314017960,1707923578055,-358.85958455,0.00042,30]
[314017961,1707923578064,-150.0,0.00042,13]
[314017962,1707923578075,-200.0,0.00042,2]
[314017963,1707923578084,-15000.0,0.00042,120]
[314017964,1707923578094,-1000.0,0.00042,7]
[314017965,1707923578104,-232.46,0.00042,7]
[314017966,1707923578112,-1296.31240184,0.0004201,2]
[314017967,1707923578122,-150.0,0.0004202,20]
[314017968,1707923578130,-1264.54565816,0.0004202,10]
[314017969,1707923578139,-150.0,0.00042028,30]
[314017970,1707923578149,-15000.0,0.00042038,120]
[314017971,1707923578158,-354.81402348,0.0004207,30]
[314017972,1707923578168,-8060.1,0.00042075,120]
[314017973,1707923578178,-150.0,0.00042082,30]
[314017974,1707923578188,-1000.0,0.000421,30]
[314017975,1707923578197,-354.81402348,0.00042111,30]
[314017976,1707923578208,-172.15221479,0.00042133,30]
[314017977,1707923578217,-358.85958455,0.00042135,30]
[314017978,1707923578227,-151.44662462,0.0004214,30]
[314017979,1707923578236,-235.13880492,0.00042142,30]
[314017980,1707923578246,-151.0214,0.00042148,21]
[314017981,1707923578255,-150.0,0.00042149,30]
[314017982,1707923578265,-157.0252244,0.00042155,30]
[314017983,1707923578275,-150.0,0.00042168,3]
[314017984,1707923578285,-150.0,0.00042168,3]
[314017985,1707923578294,-155.96258335,0.00042181,30]
[314017986,1707923578304,-239.29468169,0.00042183,30]
[314017987,1707923578313,-358.21035871,0.00042191,31]
[314017988,1707923578323,-500.0,0.00042191,7]
[314017989,1707923578332,-636.47,0.00042191,7]
[314017990,1707923578342,-968.71,0.00042191,7]
[314017991,1707923578351,-500.0,0.00042191,7]
[314017992,1707923578360,-536.83,0.00042191,7]
[314017993,1707923578369,-511.55,0.00042191,7]
[314017994,1707923578378,-564.0,0.00042191,7]
[314017995,1707923578388,-1240.83,0.00042191,7]
[314017996,1707923578397,-1171.11,0.00042191,7]
[314017997,1707923578406,-564.08,0.00042191,7]
[314017998,1707923578416,-1281.17,0.00042191,7]
[314017999,1707923578425,-1147.23,0.00042191,7]
[314018000,1707923578434,-568.35,0.00042191,7]
[314018001,1707923578445,-1433.14,0.00042191,7]
[314018002,1707923578455,-530.02,0.00042191,7]
[314018003,1707923578464,-1489.83,0.00042191,7]
[314018004,1707923578475,-528.29,0.00042191,7]
[314018005,1707923578484,-1024.97,0.00042191,7]
[314018006,1707923578493,-569.56,0.00042191,7]
[314018007,1707923578502,-785.09,0.00042191,7]
[314018008,1707923578511,-1152.13,0.00042191,7]
[314018009,1707923578520,-1376.22,0.00042191,2]
[314018010,1707923578529,-329.72309482,0.00042191,7]
[314018011,1707923578537,-770.95,0.00042191,7]
[314018012,1707923578546,-1599.92,0.00042191,7]
[314018013,1707923578555,-1153.23,0.00042191,7]
[314018014,1707923578564,-500.0,0.00042191,7]
[314018015,1707923578573,-1045.09,0.00042191,7]
[314018016,1707923578582,-774.56,0.00042191,7]
[314018017,1707923578591,-1031.35,0.00042191,7]
[314018018,1707923578600,-548.76,0.00042191,7]
[314018019,1707923578609,-500.0,0.00042191,7]
[314018020,1707923578618,-661.87,0.00042191,7]
[314018021,1707923578627,-500.0,0.00042191,7]
[314018022,1707923578636,-584.37,0.00042191,7]
[314018023,1707923578646,-520.1,0.00042191,7]
[314018024,1707923578655,-1604.0,0.00042191,7]
[314018025,1707923578664,-500.0,0.00042191,7]
[314018026,1707923578673,-943.16,0.00042191,7]
[314018027,1707923578683,-644.22,0.00042191,7]
[314018028,1707923578692,-1264.92,0.00042191,7]
[314018029,1707923578701,-1136.26,0.00042191,7]
[314018030,1707923578711,-704.7,0.00042191,7]
[314018031,1707923578720,-553.03,0.00042191,7]
[314018032,1707923578729,-812.61,0.00042191,7]
[314018033,1707923578738,-570.14,0.00042191,7]
[314018034,1707923578746,-519.06,0.00042191,7]
[314018035,1707923578755,-733.41,0.00042191,7]
[314018036,1707923578767,-1130.05,0.00042191,7]
[314018037,1707923578775,-674.48,0.00042191,7]
[314018038,1707923578784,-599.48,0.00042191,7]
[314018039,1707923578793,-699.45,0.00042191,7]
[314018040,1707923578802,-808.31,0.00042191,7]
[314018041,1707923578812,-647.83,0.00042191,7]
[314018042,1707923578822,-1377.65,0.00042191,7]
[314018043,1707923578831,-734.76,0.00042191,7]
[314018044,1707923578841,-1145.4,0.00042191,7]
[314018045,1707923578850,-1361.9,0.00042191,7]
[314018046,1707923578859,-1574.35,0.00042191,7]
[314018047,1707923578868,-500.0,0.00042191,7]
[314018048,1707923578877,-500.0,0.00042191,7]
[314018049,1707923578886,-1000.98,0.00042191,7]
[314018050,1707923578895,-940.65,0.00042191,7]
[314018051,1707923578905,-819.39,0.00042191,7]
[314018052,1707923578914,-664.33,0.00042191,7]
[314018053,1707923578924,-574.43,0.00042191,7]
[314018054,1707923578933,-582.92,0.00042191,7]
[314018055,1707923578942,-709.41,0.00042191,7]
[314018056,1707923578951,-523.78,0.00042191,7]
[314018057,1707923578963,-584.12,0.00042191,7]
[314018058,1707923578972,-629.64,0.00042191,7]
[314018059,1707923578984,-549.4,0.00042191,7]
[314018060,1707923578994,-1007.67,0.00042191,7]
[314018061,1707923579003,-2090.09,0.00042191,7]
[314018062,1707923579012,-964.24,0.00042191,7]
[314018063,1707923579022,-633.52,0.00042191,7]
[314018064,1707923579031,-500.0,0.00042191,7]
[314018065,1707923579041,-1464.25,0.00042191,7]
[314018066,1707923579050,-1470.37,0.00042191,7]
[314018067,1707923579059,-500.0,0.00042191,7]
[314018068,1707923579068,-608.25,0.00042191,7]
[314018069,1707923579078,-760.6,0.00042191,7]
[314018070,1707923579087,-547.73,0.00042191,7]
[314018071,1707923579096,-1725.04,0.00042191,7]
[314018072,1707923579106,-554.39,0.00042191,7]
[314018073,1707923579115,-1351.58,0.00042191,7]
[314018074,1707923579125,-638.35,0.00042191,7]
[314018075,1707923579134,-619.45,0.00042191,7]
[314018076,1707923579143,-974.92,0.00042191,7]
[314018077,1707923579152,-855.82,0.00042191,7]
[314018078,1707923579162,-1157.75,0.00042191,7]
[314018079,1707923579171,-896.42,0.00042191,2]
[314018080,1707923579180,-500.0,0.00042191,7]
[314018081,1707923579190,-544.41,0.00042191,7]
[314018082,1707923579199,-586.61,0.00042191,7]
[314018083,1707923579211,-500.0,0.00042191,20]
[314018084,1707923579220,-863.99,0.00042191,7]
[314018085,1707923579229,-969.91,0.00042191,7]
[314018086,1707923579238,-500.0,0.00042191,7]
[314018087,1707923579247,-597.96,0.00042191,2]
[314018088,1707923579256,-1237.52,0.00042191,7]
[314018089,1707923579266,-500.0,0.00042191,7]
[314018090,1707923579275,-686.48,0.00042191,7]
[314018091,1707923579284,-633.51,0.00042191,7]
[314018092,1707923579293,-434.70218665,0.00042191,7]
[314018093,1707923579303,-1310.86,0.00042191,7]
[314018094,1707923579312,-646.21,0.00042191,7]
[314018095,1707923579322,-643.81,0.00042191,7]
[314018096,1707923579332,-632.83,0.00042191,7]
[314018097,1707923579341,-1166.74,0.00042191,7]
[314018098,1707923579350,-778.72,0.00042191,7]
[314018099,1707923579360,-537.19,0.00042191,7]
[314018100,1707923579370,-522.92,0.00042191,7]
[314018101,1707923579379,-500.0,0.00042191,7]
[314018102,1707923579388,-839.23,0.00042191,7]
[314018103,1707923579397,-540.0,0.00042191,7]
[314018104,1707923579407,-860.82,0.00042191,7]
[314018105,1707923579416,-710.26,0.00042191,7]
[314018106,1707923579425,-500.0,0.00042191,7]
[314018107,1707923579434,-594.3,0.00042191,7]
[314018108,1707923579443,-563.0,0.00042191,7]
[314018109,1707923579452,-689.41,0.00042191,7]
[314018110,1707923579463,-1735.17,0.00042191,7]
[314018111,1707923579472,-1292.66,0.00042191,7]
[314018112,1707923579481,-2576.99,0.00042191,7]
[314018113,1707923579490,-500.0,0.00042191,7]
[314018114,1707923579499,-1880.82,0.00042191,7]
[314018115,1707923579509,-551.14,0.00042191,7]
[314018116,1707923579518,-1420.44,0.00042191,7]
[314018117,1707923579526,-713.29,0.00042191,7]
[314018118,1707923579536,-1306.77,0.00042191,7]
[314018119,1707923579544,-865.48,0.00042191,7]
[314018120,1707923579553,-798.43,0.00042191,7]
[314018121,1707923579562,-792.44,0.00042191,7]
[314018122,1707923579571,-1762.73,0.00042191,7]
[314018123,1707923579580,-566.85,0.00042191,7]
[314018124,1707923579589,-616.16,0.00042191,7]
[314018125,1707923579598,-721.07,0.00042191,7]
[314018126,1707923579607,-500.0,0.00042191,7]
[314018127,1707923579616,-501.48,0.00042191,7]
[314018128,1707923579625,-1882.77,0.00042191,7]
[314018129,1707923579634,-804.17,0.00042191,7]
[314018130,1707923579643,-348.62104416,0.00042191,7]
[314018131,1707923579652,-1538.55,0.00042191,7]
[314018132,1707923579662,-747.44,0.00042191,7]
[314018133,1707923579671,-1390.73,0.00042191,7]
[314018134,1707923579681,-1109.74,0.00042191,7]